fUSD/lending_fUSD_20250109
["ID","MTS","AMOUNT","RATE_DAILY","PERIOD"]
[348245332,1736416248954,-500.0,0.00010246,2]
[348245333,1736416248964,-500.0,0.00010246,2]
[348245334,1736416248973,-500.0,0.00010246,2]
[348245335,1736416248983,-500.0,0.00010246,2]
[348245336,1736416248992,-500.0,0.00010246,2]
[348245337,1736416249002,-500.0,0.00010246,2]
[348245338,1736416249011,-500.0,0.00010246,2]
[348245339,1736416249021,-500.0,0.00010246,2]
[348245340,1736416249031,-500.0,0.00010246,2]
[348245341,1736416249040,-500.0,0.00010246,2]
[348245342,1736416249051,-500.0,0.00010246,2]
[348245343,1736416249062,-500.0,0.00010246,2]
[348245344,1736416249072,-500.0,0.00010246,2]
[348245345,1736416249082,-500.0,0.00010246,2]
[348245346,1736416249091,-500.0,0.00010246,2]
[348245347,1736416249100,-500.0,0.00010246,2]
[348245348,1736416249110,-500.0,0.00010246,2]
[348245349,1736416249120,-1704.96,0.00010246,2]
[348245350,1736416249129,-500.0,0.00010246,2]
[348245351,1736416249139,-722.649923,0.00010246,2]
[348245352,1736416249148,-612.44,0.00010246,2]
[348245353,1736416249158,-1697.74,0.00010246,2]
[348245354,1736416249170,-500.0,0.00010246,2]
[348245355,1736416249180,-500.0,0.00010246,2]
[348245356,1736416249190,-500.0,0.00010246,2]
[348245357,1736416249200,-500.0,0.00010246,2]
[348245358,1736416249210,-500.0,0.00010246,2]
[348245359,1736416249219,-500.0,0.00010246,2]
[348245360,1736416249229,-500.0,0.00010246,2]
[348245361,1736416249239,-500.0,0.00010246,2]
[348245362,1736416249249,-500.0,0.00010246,2]
[348245363,1736416249259,-500.0,0.00010246,2]
[348245364,1736416249268,-500.0,0.00010246,2]
[348245365,1736416249278,-1819.6,0.00010246,2]
[348245366,1736416249287,-500.0,0.00010246,2]
[348245367,1736416249297,-500.0,0.00010246,2]
[348245368,1736416249306,-500.0,0.00010246,2]
[348245369,1736416249316,-1955.7712503,0.00010252,2]
[348245370,1736416249325,-150.0,0.00010255,2]
[348245371,1736416249335,-150.0,0.00010261,2]
[348245372,1736416249344,-500.0,0.00010268,2]
[348245373,1736416249354,-972.59,0.00010268,2]
[348245374,1736416249364,-500.0,0.00010268,2]
[348245375,1736416249374,-500.0,0.00010268,2]
[348245376,1736416249383,-500.0,0.00010268,2]
[348245377,1736416249393,-500.0,0.00010268,2]
[348245378,1736416249403,-500.0,0.00010268,2]
[348245379,1736416249413,-512.29,0.00010268,2]
[348245380,1736416249422,-500.0,0.00010268,2]
[348245381,1736416249432,-500.0,0.00010268,2]
[348245382,1736416249442,-505.68,0.00010268,2]
[348245383,1736416249452,-500.0,0.00010268,2]
[348245384,1736416249462,-500.0,0.00010268,2]
[348245385,1736416249471,-531.99,0.00010268,2]
[348245386,1736416249481,-880.05,0.00010268,2]
[348245387,1736416249491,-1053.8,0.00010268,2]
[348245388,1736416249500,-1265.65,0.00010268,2]
[348245389,1736416249510,-3069.57,0.00010268,2]
[348245390,1736416249520,-500.0,0.00010268,2]
[348245391,1736416249530,-500.0,0.00010268,2]
[348245392,1736416249540,-500.0,0.00010268,2]
[348245393,1736416249550,-500.0,0.00010268,2]
[348245394,1736416249561,-500.0,0.00010268,2]
[348245395,1736416249571,-500.0,0.00010268,2]
[348245396,1736416249581,-678.82,0.00010268,2]
[348245397,1736416249590,-537.88,0.00010268,2]
[348245398,1736416249599,-784.13,0.00010268,2]
[348245399,1736416249608,-500.0,0.00010269,2]
[348245400,1736416249618,-500.0,0.00010269,2]
[348245401,1736416249627,-500.0,0.00010269,2]
[348245402,1736416249637,-500.0,0.00010269,2]
[348245403,1736416249646,-500.0,0.00010269,2]
[348245404,1736416249655,-500.0,0.00010269,2]
[348245405,1736416249665,-604.95,0.00010269,2]
[348245406,1736416249674,-500.0,0.00010269,2]
[348245407,1736416249684,-500.0,0.00010269,2]
[348245408,1736416249693,-500.0,0.00010269,2]
[348245409,1736416249702,-500.0,0.00010269,2]
[348245410,1736416249711,-500.0,0.00010269,2]
[348245411,1736416249720,-500.0,0.00010269,2]
[348245412,1736416249729,-500.0,0.00010269,2]
[348245413,1736416249739,-500.0,0.00010269,2]
[348245414,1736416249748,-500.0,0.00010269,2]
[348245415,1736416249757,-500.0,0.00010269,2]
[348245416,1736416249766,-500.0,0.00010269,2]
[348245417,1736416249775,-441.36,0.00010269,2]
[348245418,1736416249784,-261.84,0.00010269,2]
[348245419,1736416249795,-500.0,0.00010269,2]
[348245420,1736416249803,-500.0,0.00010269,2]
[348245421,1736416249813,-500.0,0.00010269,2]
[348245422,1736416249825,-500.0,0.00010269,2]
[348245423,1736416249834,-271.09,0.00010269,2]
[348245424,1736416249844,-500.0,0.00010269,2]
[348245425,1736416249854,-500.0,0.00010269,2]
[348245426,1736416249864,-500.0,0.00010269,2]
[348245427,1736416249874,-500.0,0.00010269,2]
[348245428,1736416249883,-500.0,0.00010269,2]
[348245429,1736416249893,-500.0,0.00010269,2]
[348245430,1736416249905,-500.0,0.00010269,2]
[348245431,1736416249916,-500.0,0.00010269,2]
[348245432,1736416249926,-500.0,0.00010269,2]
[348245433,1736416249935,-500.0,0.00010269,2]
[348245434,1736416249945,-500.0,0.00010269,2]
[348245435,1736416249954,-500.0,0.00010269,2]
[348245436,1736416249963,-500.0,0.00010269,2]
[348245437,1736416249973,-500.0,0.00010269,2]
[348245438,1736416249982,-500.0,0.00010269,2]
[348245439,1736416249992,-500.0,0.00010269,2]
[348245440,1736416250002,-500.0,0.00010269,2]
[348245441,1736416250011,-1000.0,0.00010269,2]
[348245442,1736416250021,-500.0,0.00010269,2]
[348245443,1736416250030,-500.0,0.00010269,2]
[348245444,1736416250040,-500.0,0.00010269,2]
[348245445,1736416250050,-617.25,0.00010269,2]
[348245446,1736416250059,-500.0,0.00010269,2]
[348245447,1736416250068,-500.0,0.00010269,2]
[348245448,1736416250077,-500.0,0.00010269,2]
[348245449,1736416250087,-500.0,0.00010269,2]
[348245450,1736416250097,-500.0,0.00010269,2]
[348245451,1736416250106,-1268.36,0.00010269,2]
[348245452,1736416250115,-500.0,0.00010269,2]
[348245453,1736416250125,-500.0,0.00010269,2]
[348245454,1736416250134,-500.0,0.00010269,2]
[348245455,1736416250143,-500.0,0.00010269,2]
[348245456,1736416250151,-500.0,0.00010269,2]
[348245457,1736416250161,-1182.89,0.00010269,2]
[348245458,1736416250170,-500.0,0.00010269,2]
[348245459,1736416250179,-500.0,0.00010269,2]
[348245460,1736416250188,-500.0,0.00010269,2]
[348245461,1736416250198,-500.0,0.00010269,2]
[348245462,1736416250207,-500.0,0.00010269,2]
[348245463,1736416250217,-500.0,0.00010269,2]
[348245464,1736416250227,-500.0,0.00010269,2]
[348245465,1736416250237,-500.0,0.00010269,2]
[348245466,1736416250246,-500.0,0.00010269,2]
[348245467,1736416250256,-500.0,0.00010269,2]
[348245468,1736416250265,-500.0,0.00010269,2]
[348245469,1736416250275,-500.0,0.00010269,2]
[348245470,1736416250284,-500.0,0.00010269,2]
[348245471,1736416250293,-500.0,0.00010269,2]
[348245472,1736416250304,-500.0,0.00010269,2]
[348245473,1736416250315,-500.0,0.00010269,2]
[348245474,1736416250325,-500.0,0.00010269,2]
[348245475,1736416250335,-500.0,0.00010269,2]
[348245476,1736416250346,-500.0,0.00010269,2]
[348245477,1736416250357,-500.0,0.00010269,2]
[348245478,1736416250367,-500.0,0.00010269,2]
[348245479,1736416250377,-500.0,0.00010269,2]
[348245480,1736416250387,-500.0,0.00010269,2]
[348245481,1736416250396,-500.0,0.00010269,2]
[348245482,1736416250406,-500.0,0.00010269,2]
[348245483,1736416250416,-500.0,0.00010269,2]
[348245484,1736416250425,-500.0,0.00010269,2]
[348245485,1736416250435,-500.0,0.00010269,2]
[348245486,1736416250445,-500.0,0.00010269,2]
[348245487,1736416250455,-500.0,0.00010269,2]
[348245488,1736416250464,-500.0,0.00010269,2]
[348245489,1736416250474,-500.0,0.00010269,2]
[348245490,1736416250484,-500.0,0.00010269,2]
[348245491,1736416250494,-500.0,0.00010269,2]
[348245492,1736416250504,-500.0,0.00010269,2]
[348245493,1736416250514,-500.0,0.00010269,2]
[348245494,1736416250524,-500.0,0.0001027,2]
[348245495,1736416250533,-704.74,0.0001027,2]
[348245496,1736416250544,-1330.99,0.0001027,2]
[348245497,1736416250555,-1075.63,0.0001027,2]
[348245498,1736416250565,-500.0,0.0001027,2]
[348245499,1736416250575,-500.0,0.0001027,2]
[348245500,1736416250584,-763.71,0.0001027,2]
[348245501,1736416250594,-882.65,0.0001027,2]
[348245502,1736416250605,-550.98,0.0001027,2]
[348245503,1736416250614,-759.06,0.0001027,2]
[348245504,1736416250624,-2084.43,0.0001027,2]
[348245505,1736416250634,-932.11,0.0001027,2]
[348245506,1736416250645,-737.78,0.0001027,2]
[348245507,1736416250655,-764.55,0.0001027,2]
[348245508,1736416250664,-500.0,0.00010273,2]
[348245509,1736416250674,-618.21,0.00010273,2]
[348245510,1736416250684,-500.0,0.00010273,2]
[348245511,1736416250694,-500.0,0.00010273,2]
[348245512,1736416250703,-665.31,0.00010273,2]
[348245513,1736416250713,-841.49,0.00010273,2]
[348245514,1736416250722,-589.24,0.00010273,2]
[348245515,1736416250732,-1346.27,0.00010273,2]
[348245516,1736416250742,-844.91,0.00010273,2]
[348245517,1736416250751,-2336.54,0.00010273,2]
[348245518,1736416250761,-520.64,0.00010273,2]
[348245519,1736416250770,-392.23067248,0.00010279,2]
[348245520,1736416250779,-176.37,0.00010281,2]
[348245521,1736416250789,-1005.0,0.000103,2]
[348245522,1736416250798,-150.0,0.00010317,2]
[348245523,1736416250808,-150.0,0.00010332,2]
[348245524,1736416250820,-303.0,0.0001034,2]
[348245525,1736416250835,-597.0,0.0001034,2]
[348245526,1736416250845,-500.0,0.00010347,2]
[348245527,1736416250854,-500.0,0.00010347,2]
[348245528,1736416250865,-500.0,0.00010347,2]
[348245529,1736416250875,-500.0,0.00010347,2]
[348245530,1736416250885,-500.0,0.00010347,2]
[348245531,1736416250894,-500.0,0.00010347,2]
[348245532,1736416250905,-500.0,0.00010347,2]
[348245533,1736416250917,-636.4802761,0.00010347,2]
[348245534,1736416250926,-500.0,0.00010347,2]
[348245535,1736416250936,-505.81777384,0.00010347,2]
[348245536,1736416250945,-500.0,0.00010347,2]
[348245537,1736416250955,-500.0,0.00010347,2]
[348245538,1736416250964,-500.0,0.00010347,2]
[348245539,1736416250974,-492.93,0.00010347,2]
[348245540,1736416250983,-500.0,0.00010347,2]
[348245541,1736416250993,-500.0,0.00010347,2]
[348245542,1736416251003,-500.0,0.00010347,2]
[348245543,1736416251013,-553.7,0.00010347,2]
[348245544,1736416251022,-500.0,0.00010347,2]
[348245545,1736416251031,-500.0,0.00010347,2]
[348245546,1736416251041,-500.0,0.00010347,2]
[348245547,1736416251050,-500.0,0.00010347,2]
[348245548,1736416251060,-555.33,0.00010347,2]
[348245549,1736416251069,-500.0,0.00010347,2]
[348245550,1736416251079,-285.55519533,0.00010347,2]
[348245551,1736416251088,-241.06,0.00010347,2]
[348245552,1736416251098,-500.0,0.00010347,2]
[348245553,1736416251107,-500.0,0.00010347,2]
[348245554,1736416251118,-500.0,0.00010347,2]
[348245555,1736416251127,-500.0,0.00010347,2]
[348245556,1736416251137,-500.0,0.00010347,2]
[348245557,1736416251146,-483.96423195,0.00010347,2]
[348245558,1736416251155,-500.0,0.00010347,2]
[348245559,1736416251164,-507.62,0.00010347,2]
[348245560,1736416251174,-500.0,0.00010347,2]
[348245561,1736416251183,-500.0,0.00010347,2]
[348245562,1736416251193,-229.02,0.00010347,2]
[348245563,1736416251203,-500.0,0.00010347,2]
[348245564,1736416251212,-592.06,0.00010347,2]
[348245565,1736416251221,-500.0,0.00010347,2]
[348245566,1736416251231,-500.0,0.00010347,2]
[348245567,1736416251241,-500.0,0.00010347,2]
[348245568,1736416251251,-500.0,0.00010347,2]
[348245569,1736416251260,-500.0,0.00010347,2]
[348245570,1736416251270,-500.0,0.00010347,2]
[348245571,1736416251279,-500.0,0.00010347,2]
[348245572,1736416251289,-500.0,0.00010347,2]
[348245573,1736416251299,-500.0,0.00010347,2]
[348245574,1736416251308,-500.0,0.00010347,2]
[348245575,1736416251318,-500.0,0.00010347,2]
[348245576,1736416251328,-601.44,0.00010347,2]
[348245577,1736416251338,-500.0,0.00010347,2]
[348245578,1736416251348,-500.0,0.00010347,2]
[348245579,1736416251357,-500.0,0.00010347,2]
[348245580,1736416251368,-500.0,0.00010347,2]
[348245581,1736416251377,-500.0,0.00010347,2]
[348245582,1736416251387,-500.0,0.00010347,2]
[348245583,1736416251396,-500.0,0.00010347,2]
[348245584,1736416251405,-500.0,0.00010347,2]
[348245585,1736416251416,-500.0,0.00010347,2]
[348245586,1736416251426,-500.0,0.00010347,2]
[348245587,1736416251435,-500.0,0.00010347,2]
[348245588,1736416251445,-170.12,0.00010347,2]
[348245589,1736416251455,-500.0,0.00010347,2]
[348245590,1736416251464,-411.10880029,0.00010347,2]
[348245591,1736416251474,-500.0,0.00010347,2]
[348245592,1736416251484,-500.0,0.00010347,2]
[348245593,1736416251494,-391.95,0.00010347,2]
[348245594,1736416251504,-500.0,0.00010347,2]
[348245595,1736416251514,-500.0,0.00010347,2]
[348245596,1736416251674,-232.72,0.00010347,2]
[348245597,1736416251685,-535.33,0.00010347,2]
[348245598,1736416251695,-500.0,0.00010347,2]
[348245599,1736416251705,-500.0,0.00010347,2]
[348245600,1736416251715,-500.0,0.00010347,2]
[348245601,1736416251724,-500.0,0.00010347,2]
[348245602,1736416251734,-500.0,0.00010347,2]
[348245603,1736416251744,-447.16,0.00010347,2]
[348245604,1736416251753,-500.0,0.00010347,2]
[348245605,1736416251763,-500.0,0.00010347,2]
[348245606,1736416251773,-500.0,0.00010347,2]
[348245607,1736416251783,-625.28952574,0.00010347,2]
[348245608,1736416251793,-500.0,0.00010347,2]
[348245609,1736416251802,-500.0,0.00010347,2]
[348245610,1736416251813,-500.0,0.00010347,2]
[348245611,1736416251824,-500.0,0.00010347,2]
[348245612,1736416251835,-500.0,0.00010347,2]
[348245613,1736416251845,-500.0,0.00010347,2]
[348245614,1736416251854,-500.0,0.00010347,2]
[348245615,1736416251864,-500.0,0.00010347,2]
[348245616,1736416251875,-500.0,0.00010347,2]
[348245617,1736416251884,-500.0,0.00010347,2]
[348245618,1736416251895,-331.79585934,0.00010347,2]
[348245619,1736416251905,-500.0,0.00010347,2]
[348245620,1736416251915,-500.0,0.00010347,2]
[348245621,1736416251925,-500.0,0.00010347,2]
[348245622,1736416251934,-490.44,0.00010347,2]
[348245623,1736416251944,-500.0,0.00010347,2]
[348245624,1736416251953,-500.0,0.00010347,2]
[348245625,1736416251963,-500.0,0.00010347,2]
[348245626,1736416251972,-500.0,0.00010347,2]
[348245627,1736416251983,-500.0,0.00010347,2]
[348245628,1736416251994,-550.28,0.00010347,2]
[348245629,1736416252004,-500.0,0.00010347,2]
[348245630,1736416252014,-500.0,0.00010347,2]
[348245631,1736416252024,-500.0,0.00010347,2]
[348245632,1736416252034,-500.0,0.00010347,2]
[348245633,1736416252045,-500.0,0.00010347,2]
[348245634,1736416252054,-1000.0,0.00010348,2]
[348245635,1736416252066,-1955.7712503,0.00010362,2]
[348245636,1736416252076,-1000.0,0.00010411,2]
[348245637,1736416252085,-1000.0,0.00010411,2]
[348245638,1736416252095,-1000.0,0.00010411,2]
[348245639,1736416252104,-1000.0,0.00010411,2]
[348245640,1736416252114,-1000.0,0.00010411,2]
[348245641,1736416252123,-1000.0,0.00010411,2]
[348245642,1736416252132,-1000.0,0.00010411,2]
[348245643,1736416252142,-1000.0,0.00010411,2]
[348245644,1736416252151,-1000.0,0.00010411,2]
[348245645,1736416252161,-1000.0,0.00010411,2]
[348245646,1736416252171,-1000.0,0.00010411,2]
[348245647,1736416252181,-1000.0,0.00010411,2]
[348245648,1736416252191,-1000.0,0.00010411,2]
[348245649,1736416252200,-1000.0,0.00010411,2]
[348245650,1736416252210,-1000.0,0.00010411,2]
[348245651,1736416252219,-1000.0,0.00010411,2]
[348245652,1736416252229,-1000.0,0.00010411,2]
[348245653,1736416252239,-1000.0,0.00010411,2]
[348245654,1736416252248,-1000.0,0.00010411,2]
[348245655,1736416252258,-1000.0,0.00010411,2]
[348245656,1736416252267,-1000.0,0.00010411,2]
[348245657,1736416252277,-1000.0,0.00010411,2]
[348245658,1736416252287,-1000.0,0.00010411,2]
[348245659,1736416252296,-1000.0,0.00010411,2]
[348245660,1736416252305,-1008.0,0.00010411,2]
[348245661,1736416252315,-842.54,0.0001042,2]
[348245662,1736416252324,-2015.678,0.00010427,2]
[348245663,1736416252334,-1267.0,0.00010427,2]
[348245664,1736416252343,-635.0,0.00010427,2]
[348245665,1736416252352,-150.0,0.00010427,2]
[348245666,1736416252362,-566.0,0.00010427,2]
[348245667,1736416252371,-1861.0,0.00010427,2]
[348245668,1736416252380,-3777.0,0.00010427,2]
[348245669,1736416252390,-821.0,0.00010427,2]
[348245670,1736416252399,-1258.0,0.00010427,2]
[348245671,1736416252409,-916.0,0.00010427,2]
[348245672,1736416252420,-539.052,0.00010427,2]
[348245673,1736416252429,-3977.0,0.00010427,2]
[348245674,1736416252438,-1173.0,0.00010427,2]
[348245675,1736416252448,-9622.0,0.00010427,2]
[348245676,1736416252457,-166.565,0.00010427,2]
[348245677,1736416252467,-3895.0,0.00010427,2]
[348245678,1736416252476,-150.0,0.00010427,2]
[348245679,1736416252486,-1955.7712503,0.00010472,2]
[348245680,1736416252495,-392.23067248,0.00010483,2]
[348245681,1736416252505,-1848.244014,0.000105,2]
[348245682,1736416252515,-1165.45,0.00010518,2]
[348245683,1736416252524,-858.53,0.00010518,2]
[348245684,1736416252534,-500.0,0.00010518,2]
[348245685,1736416252544,-507.48,0.00010518,2]
[348245686,1736416252554,-1141.63,0.00010518,2]
[348245687,1736416252563,-500.0,0.00010518,2]
[348245688,1736416252573,-210.51042033,0.00010518,2]
[348245689,1736416252582,-500.0,0.00010518,2]
[348245690,1736416252591,-500.0,0.00010518,2]
[348245691,1736416252601,-500.0,0.00010518,2]
[348245692,1736416252610,-500.0,0.00010518,2]
[348245693,1736416252620,-961.76,0.00010518,2]
[348245694,1736416252629,-814.31,0.00010518,2]
[348245695,1736416252639,-500.0,0.00010518,2]
[348245696,1736416252648,-779.38,0.00010518,2]
[348245697,1736416252658,-500.0,0.00010518,2]
[348245698,1736416252669,-1257.67,0.00010518,2]
[348245699,1736416252678,-500.0,0.00010518,2]
[348245700,1736416252687,-500.0,0.00010518,2]
[348245701,1736416252697,-500.0,0.00010518,2]
[348245702,1736416252706,-4035.82,0.00010518,2]
[348245703,1736416252715,-500.0,0.00010518,2]
[348245704,1736416252725,-500.0,0.00010519,2]
[348245705,1736416252735,-500.0,0.00010519,2]
[348245706,1736416252744,-500.0,0.00010519,2]
[348245707,1736416252753,-500.0,0.00010519,2]
[348245708,1736416252763,-195.17512006,0.00010519,2]
[348245709,1736416252772,-500.0,0.00010519,2]
[348245710,1736416252782,-364.77,0.00010519,2]
[348245711,1736416252791,-500.0,0.00010519,2]
[348245712,1736416252800,-1143.36,0.00010519,2]
[348245713,1736416252808,-500.0,0.00010519,2]
[348245714,1736416252817,-557.16,0.00010519,2]
[348245715,1736416252829,-500.0,0.00010519,2]
[348245716,1736416252838,-500.0,0.00010519,2]
[348245717,1736416252847,-500.0,0.00010519,2]
[348245718,1736416252856,-500.0,0.00010519,2]
[348245719,1736416252867,-500.0,0.00010519,2]
[348245720,1736416252877,-673.44,0.00010519,2]
[348245721,1736416252887,-500.0,0.00010519,2]
[348245722,1736416252896,-1202.57,0.00010519,2]
[348245723,1736416252906,-500.0,0.00010519,2]
[348245724,1736416252916,-1322.0,0.00010519,2]
[348245725,1736416252926,-500.0,0.00010519,2]
[348245726,1736416252935,-500.0,0.00010519,2]
[348245727,1736416252944,-500.0,0.00010519,2]
[348245728,1736416252954,-500.0,0.00010519,2]
[348245729,1736416252963,-500.0,0.00010519,2]
[348245730,1736416252972,-500.0,0.00010519,2]
[348245731,1736416252982,-500.0,0.00010519,2]
[348245732,1736416252991,-2173.7,0.00010519,2]
[348245733,1736416253001,-283.8199803,0.00010519,2]
[348245734,1736416253010,-500.0,0.00010519,2]
[348245735,1736416253019,-500.0,0.00010519,2]
[348245736,1736416253029,-500.0,0.00010519,2]
[348245737,1736416253038,-628.28,0.00010519,2]
[348245738,1736416253047,-500.0,0.00010519,2]
[348245739,1736416253057,-732.41,0.00010519,2]
[348245740,1736416253066,-500.0,0.00010519,2]
[348245741,1736416253075,-500.0,0.00010519,2]
[348245742,1736416253085,-500.0,0.00010519,2]
[348245743,1736416253097,-500.0,0.00010519,2]
[348245744,1736416253109,-992.63,0.00010519,2]
[348245745,1736416253121,-500.0,0.00010519,2]
[348245746,1736416253130,-616.26071411,0.00010519,2]
[348245747,1736416253141,-789.06,0.00010519,2]
[348245748,1736416253153,-500.0,0.00010519,2]
[348245749,1736416253164,-500.0,0.00010519,2]
[348245750,1736416253173,-500.0,0.00010519,2]
[348245751,1736416253183,-1182.42,0.00010519,2]
[348245752,1736416253192,-500.0,0.00010519,2]
[348245753,1736416253202,-500.0,0.00010519,2]
[348245754,1736416253213,-500.0,0.00010519,2]
[348245755,1736416253226,-500.0,0.00010519,2]
[348245756,1736416253236,-500.0,0.00010519,2]
[348245757,1736416253249,-707.76,0.00010519,2]
[348245758,1736416253259,-500.0,0.00010519,2]
[348245759,1736416253269,-321.2994457,0.00010519,2]
[348245760,1736416253279,-500.0,0.00010519,2]
[348245761,1736416253289,-164.84,0.00010519,2]
[348245762,1736416253298,-500.0,0.00010519,2]
[348245763,1736416253308,-500.0,0.00010519,2]
[348245764,1736416253317,-500.0,0.00010519,2]
[348245765,1736416253326,-500.0,0.00010519,2]
[348245766,1736416253335,-500.0,0.00010519,2]
[348245767,1736416253345,-309.06452272,0.00010519,2]
[348245768,1736416253354,-2394.54,0.00010519,2]
[348245769,1736416253363,-734.110221,0.00010519,2]
[348245770,1736416253372,-500.0,0.00010519,2]
[348245771,1736416253381,-584.53,0.00010519,2]
[348245772,1736416253390,-500.0,0.00010519,2]
[348245773,1736416253400,-1852.6,0.00010519,2]
[348245774,1736416253409,-500.0,0.0001052,2]
[348245775,1736416253419,-500.0,0.0001052,2]
[348245776,1736416253429,-500.0,0.0001052,2]
[348245777,1736416253438,-500.0,0.0001052,2]
[348245778,1736416253448,-500.0,0.0001052,2]
[348245779,1736416253458,-500.0,0.0001052,2]
[348245780,1736416253467,-500.0,0.0001052,2]
[348245781,1736416253477,-500.0,0.0001052,2]
[348245782,1736416253486,-500.0,0.0001052,2]
[348245783,1736416253495,-500.0,0.0001052,2]
[348245784,1736416253505,-500.0,0.0001052,2]
[348245785,1736416253516,-500.0,0.0001052,2]
[348245786,1736416253526,-500.0,0.0001052,2]
[348245787,1736416253537,-500.0,0.0001052,2]
[348245788,1736416253549,-500.0,0.0001052,2]
[348245789,1736416253558,-500.0,0.0001052,2]
[348245790,1736416253567,-500.0,0.0001052,2]
[348245791,1736416253576,-500.0,0.0001052,2]
[348245792,1736416253585,-500.0,0.0001052,2]
[348245793,1736416253595,-500.0,0.0001052,2]
[348245794,1736416253604,-500.0,0.0001052,2]
[348245795,1736416253614,-500.0,0.0001052,2]
[348245796,1736416253623,-500.0,0.0001052,2]
[348245797,1736416253635,-500.0,0.0001052,2]
[348245798,1736416253645,-500.0,0.0001052,2]
[348245799,1736416253654,-387.18210396,0.0001052,2]
[348245800,1736416253664,-1704.96,0.0001052,2]
[348245801,1736416253673,-500.0,0.0001052,2]
[348245802,1736416253683,-722.649923,0.0001052,2]
[348245803,1736416253692,-612.44,0.0001052,2]
[348245804,1736416253702,-1697.74,0.0001052,2]
[348245805,1736416253712,-500.0,0.0001052,2]
[348245806,1736416253723,-500.0,0.0001052,2]
[348245807,1736416253733,-500.0,0.0001052,2]
[348245808,1736416253742,-500.0,0.0001052,2]
[348245809,1736416253752,-500.0,0.0001052,2]
[348245810,1736416253760,-500.0,0.0001052,2]
[348245811,1736416253769,-500.0,0.0001052,2]
[348245812,1736416253779,-500.0,0.0001052,2]
[348245813,1736416253788,-500.0,0.0001052,2]
[348245814,1736416253798,-500.0,0.0001052,2]
[348245815,1736416253808,-500.0,0.0001052,2]
[348245816,1736416253817,-1819.6,0.0001052,2]
[348245817,1736416253829,-500.0,0.0001052,2]
[348245818,1736416253841,-500.0,0.0001052,2]
[348245819,1736416253851,-500.0,0.0001052,2]
[348245820,1736416253862,-150.0,0.00010531,2]
[348245821,1736416253871,-500.0,0.00010542,2]
[348245822,1736416253881,-972.59,0.00010542,2]
[348245823,1736416253890,-500.0,0.00010542,2]
[348245824,1736416253900,-500.0,0.00010542,2]
[348245825,1736416253910,-500.0,0.00010542,2]
[348245826,1736416253920,-500.0,0.00010542,2]
[348245827,1736416253929,-500.0,0.00010542,2]
[348245828,1736416253938,-512.29,0.00010542,2]
[348245829,1736416253947,-500.0,0.00010542,2]
[348245830,1736416253956,-500.0,0.00010542,2]
[348245831,1736416253965,-505.68,0.00010542,2]